Workbook

Sheet Sheet1
A1: 四川天马玻璃有限公司玻瓶/原料/包装物运输招标情况表
A2: 运输线路 | D2: 卸货地址 | E2: 货物名称 | F2: 参考里程（km） | G2: 合同期参考运输量（吨） | H2: 片区中标选取家数 | I2: 备注
A3: A | B3: 厂区转运 | C3: 天马—沱牌总厂 | D3: 沱牌舍得洗瓶工段 | E3: 玻瓶、包装物、玻渣 | F3: 5km以内 | G3: 200 | H3: 1 | I3: 车辆需要：车况良好，运营证照、保险齐全，禁止使用报废车
C4: 天马公司内部转运 | D4: 公司厂区内部 | E4: 玻瓶、包装物 | F4: 5km以内 | G4: 50000
A5: B | B5: 遂宁片区 | C5: 沱牌镇—遂宁 | D5: 四川省遂宁市创新工业园区 | E5: 玻瓶 | F5: 40 | G5: 600 | H5: 2 | I5: 公路运输，17.5米车型
C6: 遂宁—沱牌镇 | D6: 四川天马 | E6: 托盘 | G6: =G5/0.75 -> 800 | I6: 公路运输，17.5米车型
E7: 垫板 | G7: =G6*9 -> 7200 | I7: 公路运输，17.5米车型
E8: 顶框 | G8: =G6 -> 800 | I8: 公路运输，17.5米车型
C9: 遂宁—沱牌镇 | D9: 天马公司 | E9: 原料 | F9: 35 | G9: 7200 | I9: 公路运输，17.5米车型
A10: C | B10: 南充、 阆中、 广元、 绵阳片区 | C10: 沱牌镇—南充 | D10: 南充市嘉陵区工业园区燕京大道中段9号 | E10: 玻瓶 | F10: 85 | G10: 3000 | H10: 2 | I10: 公路运输，17.5米车型
C11: 南充—沱牌镇 | D11: 四川天马 | E11: 托盘 | G11: =G10/0.75 -> 4000 | I11: 公路运输，17.5米车型
E12: 垫板 | G12: =G11*9 -> 36000 | I12: 公路运输，17.5米车型
E13: 顶框 | G13: =G11 -> 4000 | I13: 公路运输，17.5米车型
C14: 沱牌镇—阆中 | D14: 阆中市七里新区汉王祠路工业集中区/阆中七里开发区张公桥 | E14: 玻瓶 | F14: 165 | G14: 1200 | I14: 公路运输，17.5米车型
C15: 阆中—沱牌镇 | D15: 四川天马 | E15: 托盘 | G15: =G14/0.75 -> 1600 | I15: 公路运输，17.5米车型
E16: 垫板 | G16: =G15*9 -> 14400 | I16: 公路运输，17.5米车型
E17: 顶框 | G17: =G15 -> 1600 | I17: 公路运输，17.5米车型
C18: 沱牌镇—广元 | D18: 广元市经济技术开发区石龙工业园区白龙村 | E18: 玻瓶 | F18: 286 | G18: 3000 | I18: 公路运输，17.5米车型
C19: 广元—沱牌镇 | D19: 四川天马 | E19: 包装物 | G19: =G18/0.75/450 -> 9 | I19: 公路运输，17.5米车型
C20: 沱牌镇—梓潼 | D20: 梓潼工业园区 | E20: 玻瓶 | F20: 175 | G20: 2500 | I20: 公路运输，13米车型
C21: 梓潼—沱牌镇 | D21: 四川天马 | E21: 包装物 | G21: =G20/0.75/450 -> 7 | I21: 公路运输，13米车型
C22: 沱牌镇—西充多扶镇 | D22: 南充市西充县多扶镇经济技术开发区 | E22: 玻瓶 | F22: 110 | G22: 100 | I22: 公路运输，13米车型
C23: 沱牌镇—西充 | D23: 西充县晋城镇晋城大道317号 | E23: 玻瓶 | F23: 95 | G23: 100 | I23: 公路运输，13米车型
A24: D | B24: 资阳片区 | C24: 沱牌镇—资阳 | D24: 资阳市雁江区百威英博大道 | E24: 玻瓶 | F24: 145 | G24: 20000 | H24: 3 | I24: 公路运输，17.5米车型
C25: 资阳—沱牌镇 | D25: 四川天马 | E25: 托盘 | G25: =G24/0.75 -> 26667 | I25: 公路运输，17.5米车型
E26: 垫板 | G26: =G25*9 -> 240000 | I26: 公路运输，17.5米车型
E27: 顶框 | G27: =G25 -> 26667 | I27: 公路运输，17.5米车型
A28: E | B28: 新都片区 | C28: 沱牌镇—新都 | D28: 新都工业东区星光路108号 | E28: 玻瓶 | F28: 160 | G28: 15000 | H28: 3 | I28: 公路运输，17.5米车型
C29: 新都—沱牌镇 | D29: 新都工业东区星光路108号 | E29: 托盘 | G29: =G28/0.75 -> 20000 | I29: 公路运输，17.5米车型
E30: 垫板 | G30: =G29*9 -> 180000 | I30: 公路运输，17.5米车型
E31: 顶框 | G31: =G29 -> 20000 | I31: 公路运输，17.5米车型
A32: F | B32: 成都片区 | C32: 沱牌镇—眉山 | D32: 眉山市东坡区秦家镇火星村4组/眉山东坡区城南岷家渡 | E32: 玻瓶 | F32: 260/240 | G32: 6000 | H32: 2 | I32: 公路运输，17.5米车型
C33: 眉山—沱牌镇 | D33: 四川天马 | E33: 托盘 | G33: =G32/0.75 -> 8000 | I33: 公路运输，17.5米车型
E34: 垫板 | G34: =G33*9 -> 72000 | I34: 公路运输，17.5米车型
E35: 顶框 | G35: =G33 -> 8000 | I35: 公路运输，17.5米车型
C36: 沱牌镇—蒲江 | D36: 成都蒲江县大唐镇西街158号 | E36: 玻瓶 | F36: 270 | G36: 5000 | I36: 公路运输，17.5米车型
C37: 蒲江—沱牌镇 | D37: 四川天马 | E37: 托盘 | G37: =G36/0.75 -> 6667 | I37: 公路运输，17.5米车型
E38: 垫板 | G38: =G37*9 -> 60000 | I38: 公路运输，17.5米车型
E39: 顶框 | G39: =G37 -> 6667 | I39: 公路运输，17.5米车型
C40: 乐山—沱牌镇 | D40: 天马公司 | E40: 原料（吨袋） | F40: 280 | G40: 6000 | I40: 公路运输，17.5米车型
C41: 沱牌镇—广汉 | D41: 广汉南兴镇/广汉向阳镇 | E41: 玻瓶 | F41: 160 | G41: 200 | I41: 公路运输，17.5米车型
C42: 广汉南兴镇/向阳镇—沱牌镇 | D42: 四川天马 | E42: 包装物 | G42: =G41/0.75/450 -> 1 | I42: 公路运输，17.5米车型
C43: 沱牌镇—什邡 | D43: 四川省什邡市蓝剑大道 | E43: 玻瓶 | F43: 190 | G43: 2000 | I43: 公路运输，17.5米车型
C44: 什邡—沱牌镇 | D44: 四川天马 | E44: 托盘 | G44: =G43/0.75 -> 2667 | I44: 公路运输，17.5米车型
E45: 垫板 | G45: =G44*9 -> 24000 | I45: 公路运输，17.5米车型
E46: 顶框 | G46: =G44 -> 2667 | I46: 公路运输，17.5米车型
C47: 沱牌镇—什邡 | D47: 什邡市皂角城东村10组 | E47: 玻瓶 | F47: 190 | G47: 300 | I47: 公路运输，13米车型
C48: 什邡—沱牌镇 | D48: 四川天马 | E48: 包装物 | G48: =G47/0.75/300 -> 1.33 | I48: 公路运输，13米车型
C49: 沱牌镇—大邑 | D49: 四川省成都市大邑县晋源工业区兴业四路18号 | E49: 玻瓶 | F49: 236 | G49: 2500 | I49: 公路运输，17.5米车型
C50: 大邑/邛崃—沱牌镇 | D50: 四川天马 | E50: 托盘 | G50: =G49/0.75 -> 3333 | I50: 公路运输，17.5米车型
E51: 垫板 | G51: =G50*9 -> 30000 | I51: 公路运输，17.5米车型
E52: 顶框 | G52: =G50 -> 3333 | I52: 公路运输，17.5米车型
C53: 沱牌镇—郫 县 | D53: 成都郫县工业南区清马路1198号 | E53: 玻瓶 | F53: 195 | G53: 400 | I53: 公路运输，17.5米车型
C54: 郫 县—沱牌镇 | D54: 四川天马 | E54: 包装物 | G54: =G53/0.75/450 -> 1 | I54: 公路运输，17.5米车型
C55: 沱牌镇—温 江 | D55: 成都温江区蓉台大道金星啤酒厂 | E55: 玻瓶 | F55: 205 | G55: 1000 | I55: 公路运输，17.5米车型
C56: 温 江—沱牌镇 | D56: 四川天马 | E56: 包装物 | G56: 3 | I56: 公路运输，17.5米车型
A57: G | B57: 重庆片区 | C57: 沱牌镇—大竹林 | D57: 重庆市北部新区大竹林镇 | E57: 玻瓶 | F57: 180 | G57: 3000 | H57: 2 | I57: 公路运输，17.5米车型
C58: 大竹林—沱牌镇 | D58: 四川天马 | E58: 包装物 | G58: 9 | I58: 公路运输，17.5米车型
C59: 沱牌镇—重庆马王乡 | D59: 重庆市九龙坡区马王乡龙泉村1号/重庆大渡口区柏树堡 | E59: 玻瓶 | F59: 190 | G59: 3000 | I59: 公路运输，17.5米车型
C60: 重庆马王乡—沱牌镇 | D60: 四川天马 | E60: 包装物 | G60: =G59/0.75/450 -> 9 | I60: 公路运输，17.5米车型
C61: 沱牌镇—合川 | D61: 重庆合川 太和镇接龙街１５０号 | E61: 玻瓶 | F61: 153 | G61: 1000 | I61: 公路运输，17.5米车型
C62: 合川—沱牌镇 | D62: 四川天马 | E62: 包装物 | G62: 3 | I62: 公路运输，17.5米车型
C63: 沱牌镇—宜宾 | D63: 宜宾市宜宾县高场镇工业园区高捷园嘉士伯路1号 | E63: 玻瓶 | F63: 280 | G63: 1000 | I63: 公路运输，17.5米车型
C64: 宜宾—沱牌镇 | D64: 四川天马 | E64: 包装物 | G64: 3 | I64: 公路运输，17.5米车型
C65: 沱牌镇—江津 | D65: 重庆市江津区白沙工业园区兴盛路 | E65: 玻瓶 | F65: 240 | G65: 2000 | I65: 公路运输，17.5米车型
C66: 江津—沱牌镇 | D66: 四川天马 | E66: 包装物 | G66: =G65/0.75/450 -> 6 | I66: 公路运输，17.5米车型
A67: H | B67: 云南片区 | C67: 沱牌镇—云南晋宁 | D67: 昆明市晋宁县晋宁工业园区宝峰基地百威路1号 | E67: 玻瓶 | F67: 920 | G67: 8000 | H67: 2 | I67: 公路运输，17.5米车型
C68: 云南晋宁—沱牌镇 | D68: 四川天马 | E68: 包装物 | G68: 24 | I68: 公路运输，17.5米车型
C69: 沱牌镇—云南崇明 | D69: 昆明市嵩明县杨林经济技术开发区天创路18号 | E69: 玻瓶 | F69: 820 | G69: 5000 | I69: 公路运输，17.5米车型
C70: 云南崇明—沱牌镇 | D70: 四川天马 | E70: 包装物 | G70: 15 | I70: 公路运输，17.5米车型
C71: 沱牌镇—云南弥勒 | D71: 云南弥勒县东风农场云南红酒庄/云南省弥勒市东风农场 | E71: 玻瓶 | F71: 980 | G71: 1200 | I71: 公路运输，17.5米车型
A72: I | B72: 广州、 武汉片区 | C72: 沱牌镇—广州白云区 | D72: 广州市白云区石井镇唐阁一社工业园 | E72: 玻瓶 | F72: 1500 | G72: 1000 | H72: 2 | I72: 公路运输，17.5米车型
C73: 广州白云区—沱牌镇 | D73: 四川天马 | E73: 包装物 | G73: =G72/0.75/450 -> 3 | I73: 公路运输，17.5米车型
C74: 沱牌镇—广州佛山 | D74: 佛山市三水区百威大道1号/佛山三水乐平镇工业园基业路3号 | E74: 玻瓶 | F74: 1450 | G74: 1500 | I74: 公路运输，17.5米车型
C75: 广州佛山—沱牌镇 | D75: 四川天马 | E75: 包装物 | G75: 4 | I75: 公路运输，17.5米车型
C76: 沱牌镇—武汉 | D76: 武汉市汉阳区琴断口上首 | E76: 玻瓶 | F76: 1000 | G76: 5000 | I76: 公路运输，17.5米车型
C77: 武汉—沱牌镇 | D77: 四川天马 | E77: 包装物 | G77: 15 | I77: 公路运输，17.5米车型
A78: J | B78: 乌鲁木齐、 银川片区 | C78: 沱牌镇—乌鲁木齐 | D78: 乌鲁木齐市喀什西路591号 | E78: 玻瓶 | F78: 2890 | G78: 5000 | H78: 1 | I78: 公铁联运
C79: 乌鲁木齐—沱牌镇 | D79: 四川天马 | E79: 包装物 | G79: =G78/0.75/450 -> 15 | I79: 公路运输，17.5米车型
C80: 沱牌镇—一库尔勒 | D80: 新疆库尔勒市经济开发区安晨大道1599号 | E80: 玻瓶 | F80: 3057 | G80: 430 | I80: 公铁联运，门到门价格
C81: 库尔勒—沱牌镇 | D81: 四川天马 | E81: 包装物 | G81: 1 | I81: 公路运输，17.5米车型
C82: 沱牌镇—塔城 | D82: 新疆塔城地区乌苏市北京东路88号 | E82: 玻瓶 | F82: 3126 | G82: 430 | I82: 公铁联运，门到门价格
C83: 塔城—沱牌镇 | D83: 四川天马 | E83: 包装物 | G83: 1 | I83: 公路运输，17.5米车型
C84: 沱牌镇—银川 | D84: 宁夏银川市德胜工业园区永胜西路 8 号 | E84: 玻瓶 | F84: 1210 | G84: 1500 | I84: 公路运输，17.5米车型
C85: 银川—沱牌镇 | D85: 四川天马 | E85: 包装物 | G85: =G84/0.75/450 -> 4 | I85: 公路运输，17.5米车型
A86: K | B86: 蒙古片区 | C86: 天马-蒙古 | D86: 蒙古扎门乌德口岸 | E86: 玻瓶 | G86: 100个车皮 | H86: 1 | I86: 公铁联运，门到站
B87: 备注：
B88: 1、玻瓶包装方式均为长方形托盘(1200mm*1000mm)包装。
B89: 2、报价表所涉及运价均包含货物保险费。
B90: 3、运输结算的吨位指我司销售起运通知单记载的吨位，不包含包装物重量。
B91: 4、以上运输量为招标方预估数量，实际发生运量均以招标方实际需求为准，招标方对此不做任何承诺；
B92: 5、所有报价均含增值税9%。
